fUSD/lending_fUSD_20250806
["ID","MTS","AMOUNT","RATE_DAILY","PERIOD"]
[377584813,1754448688024,-500.0,0.00036163,14]
[377584814,1754448688033,-1377.85,0.00036163,14]
[377584815,1754448688042,-500.0,0.00036163,14]
[377584816,1754448688051,-1377.85,0.00036163,14]
[377584817,1754448688060,-388.49950409,0.00036163,14]
[377584818,1754448688068,-1377.85,0.00036163,14]
[377584819,1754448688077,-1377.85,0.00036163,14]
[377584820,1754448688086,-1377.85,0.00036163,14]
[377584821,1754448688095,-1377.85,0.00036163,14]
[377584822,1754448688105,-1377.85,0.00036163,14]
[377584823,1754448688116,-1377.85,0.00036163,14]
[377584824,1754448688125,-1378.04244616,0.00036163,14]
[377584825,1754448688134,-771.59,0.00036163,14]
[377584826,1754448688144,-771.59,0.00036163,14]
[377584827,1754448688154,-771.59,0.00036163,14]
[377584828,1754448688163,-771.59,0.00036163,14]
[377584829,1754448688172,-771.59,0.00036163,14]
[377584830,1754448688181,-771.59,0.00036163,14]
[377584831,1754448688190,-771.59,0.00036163,14]
[377584832,1754448688200,-771.59,0.00036163,14]
[377584833,1754448688209,-771.59,0.00036163,14]
[377584834,1754448688219,-771.77,0.00036163,14]
[377584835,1754448688228,-151.0,0.00036163,7]
[377584836,1754448688238,-520.59,0.00036163,14]
[377584837,1754448688247,-520.59,0.00036163,14]
[377584838,1754448688256,-520.59,0.00036163,14]
[377584839,1754448688266,-520.59,0.00036163,14]
[377584840,1754448688275,-520.59,0.00036163,14]
[377584841,1754448688284,-520.59,0.00036163,14]
[377584842,1754448688293,-520.59,0.00036163,14]
[377584843,1754448688302,-520.59,0.00036163,14]
[377584844,1754448688312,-520.59,0.00036163,14]
[377584845,1754448688321,-520.76316398,0.00036163,14]
[377584846,1754448688330,-756.79,0.00036163,14]
[377584847,1754448688340,-756.79,0.00036163,14]
[377584848,1754448688349,-756.79,0.00036163,14]
[377584849,1754448688358,-756.79,0.00036163,14]
[377584850,1754448688368,-756.79,0.00036163,14]
[377584851,1754448688378,-756.79,0.00036163,14]
[377584852,1754448688387,-756.79,0.00036163,14]
[377584853,1754448688396,-756.79,0.00036163,14]
[377584854,1754448688405,-756.79,0.00036163,14]
[377584855,1754448688414,-756.7928249,0.00036163,14]
[377584856,1754448688423,-500.0,0.00036163,14]
[377584857,1754448688432,-500.0,0.00036163,14]
[377584858,1754448688441,-500.0,0.00036163,14]
[377584859,1754448688450,-626.69952991,0.00036163,14]
[377584860,1754448688459,-300.0,0.00036163,10]
[377584861,1754448688468,-300.0,0.00036163,10]
[377584862,1754448688477,-155.643466,0.00036164,14]
[377584863,1754448688486,-1106.87216,0.00036164,14]
[377584864,1754448688495,-887.819081,0.00036164,14]
[377584865,1754448688504,-1255.615788,0.00036164,14]
[377584866,1754448688513,-192.679796,0.00036164,14]
[377584867,1754448688523,-1721.73,0.00036164,14]
[377584868,1754448688532,-151.0,0.00036164,7]
[377584869,1754448688541,-153.254827,0.00036164,7]
[377584870,1754448688550,-151.0,0.00036164,7]
[377584871,1754448688559,-210.642925,0.00036164,7]
[377584872,1754448688568,-151.0,0.00036164,7]
[377584873,1754448688577,-151.0,0.00036164,7]
[377584874,1754448688586,-151.0,0.00036164,7]
[377584875,1754448688595,-151.0,0.00036164,7]
[377584876,1754448688604,-151.0,0.00036164,7]
[377584877,1754448688613,-151.0,0.00036164,7]
[377584878,1754448688622,-151.0,0.00036164,7]
[377584879,1754448688632,-151.0,0.00036164,7]
[377584880,1754448688641,-164.510283,0.00036164,7]
[377584881,1754448688650,-151.0,0.00036164,7]
[377584882,1754448688659,-151.0,0.00036164,7]
[377584883,1754448688668,-162.981426,0.00036164,7]
[377584884,1754448688678,-151.0,0.00036164,7]
[377584885,1754448688687,-151.0,0.00036164,7]
[377584886,1754448688697,-151.0,0.00036164,7]
[377584887,1754448688706,-151.0,0.00036164,7]
[377584888,1754448688715,-242.340368,0.00036164,7]
[377584889,1754448688724,-242.340368,0.00036164,7]
[377584890,1754448688733,-158.6041,0.00036164,14]
[377584891,1754448688742,-242.340368,0.00036164,7]
[377584892,1754448688751,-242.340368,0.00036164,7]
[377584893,1754448688760,-151.0,0.00036164,7]
[377584894,1754448688770,-151.145765,0.00036164,7]
[377584895,1754448688779,-158.6041,0.00036164,14]
[377584896,1754448688789,-400.0,0.00036164,14]
[377584897,1754448688798,-400.0,0.00036164,14]
[377584898,1754448688808,-400.0,0.00036164,14]
[377584899,1754448688818,-400.0,0.00036164,14]
[377584900,1754448688827,-400.0,0.00036164,14]
[377584901,1754448688836,-158.6041,0.00036164,14]
[377584902,1754448688845,-400.23999822,0.00036164,14]
[377584903,1754448688856,-400.0,0.00036164,14]
[377584904,1754448688868,-400.0,0.00036164,14]
[377584905,1754448688878,-400.0,0.00036164,14]
[377584906,1754448688887,-333.11202,0.00036164,14]
[377584907,1754448688898,-400.0,0.00036164,14]
[377584908,1754448688908,-400.0,0.00036164,14]
[377584909,1754448688917,-166.08044585,0.00036164,14]
[377584910,1754448688927,-400.0,0.00036164,14]
[377584911,1754448688938,-400.0,0.00036164,14]
[377584912,1754448688947,-400.0,0.00036164,14]
[377584913,1754448688957,-207.45742031,0.00036164,14]
[377584914,1754448688967,-400.0,0.00036164,14]
[377584915,1754448688977,-400.0,0.00036164,14]
[377584916,1754448688987,-400.0,0.00036164,14]
[377584917,1754448688996,-400.0,0.00036164,14]
[377584918,1754448689005,-400.0,0.00036164,14]
[377584919,1754448689016,-400.0,0.00036164,14]
[377584920,1754448689026,-227.91619917,0.00036164,14]
[377584921,1754448689035,-400.0,0.00036164,14]
[377584922,1754448689044,-400.0,0.00036164,14]
[377584923,1754448689054,-400.0,0.00036164,14]
[377584924,1754448689064,-400.0,0.00036164,14]
[377584925,1754448689074,-400.0,0.00036164,14]
[377584926,1754448689084,-400.0,0.00036164,14]
[377584927,1754448689093,-400.0,0.00036164,14]
[377584928,1754448689102,-400.0,0.00036164,14]
[377584929,1754448689113,-400.0,0.00036164,14]
[377584930,1754448689122,-400.0,0.00036164,14]
[377584931,1754448689131,-400.0,0.00036164,14]
[377584932,1754448689140,-400.0,0.00036164,14]
[377584933,1754448689149,-158.604099,0.00036164,14]
[377584934,1754448689160,-400.0,0.00036164,14]
[377584935,1754448689170,-400.0,0.00036164,14]
[377584936,1754448689179,-1879.66,0.00036164,14]
[377584937,1754448689189,-517.54,0.00036164,14]
[377584938,1754448689198,-400.0,0.00036164,2]
[377584939,1754448689207,-400.0,0.00036164,14]
[377584940,1754448689216,-400.0,0.00036164,14]
[377584941,1754448689226,-400.0,0.00036164,14]
[377584942,1754448689235,-400.0,0.00036164,14]
[377584943,1754448689244,-933.27,0.00036164,14]
[377584944,1754448689253,-400.0,0.00036164,14]
[377584945,1754448689262,-400.0,0.00036164,14]
[377584946,1754448689274,-400.0,0.00036164,14]
[377584947,1754448689283,-708.86,0.00036164,14]
[377584948,1754448689292,-412.42,0.00036164,14]
[377584949,1754448689301,-400.0,0.00036164,14]
[377584950,1754448689310,-400.0,0.00036164,14]
[377584951,1754448689319,-400.0,0.00036164,14]
[377584952,1754448689329,-400.0,0.00036164,14]
[377584953,1754448689338,-415.77,0.00036164,14]
[377584954,1754448689347,-1925.55,0.00036164,14]
[377584956,1754448689356,-400.0,0.00036164,14]
[377584957,1754448689366,-158.6041,0.00036164,14]
[377584958,1754448689377,-866.96,0.00036164,14]
[377584959,1754448689386,-523.82,0.00036164,14]
[377584960,1754448689395,-400.0,0.00036164,14]
[377584961,1754448689404,-400.0,0.00036164,14]
[377584962,1754448689414,-400.0,0.00036164,14]
[377584963,1754448689423,-400.0,0.00036164,14]
[377584964,1754448689433,-1993.73,0.00036164,14]
[377584965,1754448689442,-400.0,0.00036164,14]
[377584966,1754448689451,-478.37,0.00036164,14]
[377584967,1754448689460,-1455.59,0.00036164,14]
[377584968,1754448689469,-400.0,0.00036164,14]
[377584969,1754448689478,-1137.51,0.00036164,14]
[377584970,1754448689487,-300.0,0.00036164,14]
[377584971,1754448689496,-400.0,0.00036164,14]
[377584972,1754448689505,-1494.66,0.00036164,14]
[377584973,1754448689514,-2002.12,0.00036164,14]
[377584974,1754448689524,-400.0,0.00036164,14]
[377584975,1754448689533,-400.0,0.00036164,14]
[377584976,1754448689542,-400.0,0.00036164,14]
[377584977,1754448689551,-1040.39,0.00036164,14]
[377584978,1754448689559,-400.0,0.00036164,14]
[377584979,1754448689569,-400.0,0.00036164,14]
[377584980,1754448689578,-400.0,0.00036164,14]
[377584981,1754448689587,-400.0,0.00036164,14]
[377584982,1754448689596,-662.16,0.00036164,14]
[377584983,1754448689606,-400.0,0.00036164,14]
[377584984,1754448689615,-400.0,0.00036164,14]
[377584985,1754448689623,-244.147265,0.00036164,7]
[377584986,1754448689632,-400.0,0.00036164,14]
[377584987,1754448689641,-400.0,0.00036164,14]
[377584988,1754448689650,-2153.57,0.00036164,14]
[377584989,1754448689659,-421.28547919,0.00036164,14]
[377584990,1754448689669,-400.0,0.00036164,14]
[377584991,1754448689678,-1355.9,0.00036164,14]
[377584992,1754448689687,-904.68,0.00036164,14]
[377584993,1754448689696,-400.0,0.00036164,14]
[377584994,1754448689705,-400.0,0.00036164,14]
[377584995,1754448689714,-545.31,0.00036164,14]
[377584996,1754448689723,-400.0,0.00036164,14]
[377584997,1754448689735,-400.0,0.00036164,14]
[377584998,1754448689744,-400.0,0.00036164,14]
[377584999,1754448689753,-400.0,0.00036164,14]
[377585000,1754448689763,-726.19,0.00036164,14]
[377585001,1754448689773,-400.0,0.00036164,14]
[377585002,1754448689788,-1848.23,0.00036164,14]
[377585003,1754448689797,-400.0,0.00036164,14]
[377585004,1754448689807,-400.0,0.00036164,14]
[377585005,1754448689816,-837.58,0.00036164,14]
[377585006,1754448689825,-400.0,0.00036164,14]
[377585007,1754448689834,-400.0,0.00036164,14]
[377585008,1754448689844,-426.53,0.00036164,14]
[377585009,1754448689855,-2053.66,0.00036164,14]
[377585010,1754448689873,-400.0,0.00036164,14]
[377585011,1754448689884,-463.84,0.00036164,14]
[377585012,1754448689893,-1680.73,0.00036164,14]
[377585013,1754448689904,-400.0,0.00036164,14]
[377585014,1754448689914,-482.29210111,0.00036164,14]
[377585015,1754448689924,-589.79,0.00036164,14]
[377585016,1754448689933,-400.0,0.00036164,14]
[377585017,1754448689943,-400.0,0.00036164,14]
[377585018,1754448689953,-400.0,0.00036164,5]
[377585019,1754448689963,-485.82,0.00036164,14]
[377585020,1754448689972,-151.0,0.00036164,7]
[377585021,1754448689982,-1174.99,0.00036164,14]
[377585022,1754448689992,-1560.83,0.00036164,14]
[377585023,1754448690002,-1343.09,0.00036164,14]
[377585024,1754448690011,-152.40168,0.00036164,7]
[377585025,1754448690021,-151.0,0.00036164,7]
[377585026,1754448690031,-400.0,0.00036164,14]
[377585027,1754448690040,-400.0,0.00036164,14]
[377585028,1754448690049,-400.0,0.00036164,14]
[377585029,1754448690058,-400.0,0.00036164,14]
[377585030,1754448690068,-400.0,0.00036164,14]
[377585031,1754448690078,-400.0,0.00036164,14]
[377585032,1754448690087,-400.0,0.00036164,14]
[377585033,1754448690096,-652.79,0.00036164,14]
[377585034,1754448690106,-400.0,0.00036164,14]
[377585035,1754448690115,-807.49,0.00036164,14]
[377585036,1754448690124,-2272.01,0.00036164,14]
[377585037,1754448690134,-439.11,0.00036164,14]
[377585038,1754448690143,-400.0,0.00036164,14]
[377585039,1754448690153,-400.0,0.00036164,14]
[377585040,1754448690162,-1269.54,0.00036164,14]
[377585041,1754448690171,-400.0,0.00036164,14]
[377585042,1754448690181,-400.0,0.00036164,14]
[377585043,1754448690190,-1601.77,0.00036164,14]
[377585044,1754448690200,-400.0,0.00036164,14]
[377585045,1754448690209,-549.88,0.00036164,14]
[377585046,1754448690219,-691.52,0.00036164,14]
[377585047,1754448690228,-400.0,0.00036164,14]
[377585048,1754448690237,-400.0,0.00036164,14]
[377585049,1754448690246,-400.0,0.00036164,14]
[377585050,1754448690256,-937.63,0.00036164,14]
[377585051,1754448690269,-1238.53,0.00036164,14]
[377585052,1754448690279,-758.93,0.00036164,14]
[377585053,1754448690289,-842.35,0.00036164,14]
[377585054,1754448690298,-400.0,0.00036164,14]
[377585055,1754448690307,-1051.66,0.00036164,14]
[377585056,1754448690316,-566.9,0.00036164,14]
[377585057,1754448690326,-1884.93,0.00036164,14]
[377585058,1754448690335,-1133.77,0.00036164,14]
[377585059,1754448690344,-400.0,0.00036164,14]
[377585060,1754448690353,-1135.75,0.00036164,14]
[377585061,1754448690363,-400.0,0.00036164,14]
[377585062,1754448690372,-1340.96,0.00036164,14]
[377585063,1754448690381,-380.19245659,0.00036164,14]
[377585064,1754448690391,-1269.95,0.00036164,14]
[377585065,1754448690400,-1245.02,0.00036164,14]
[377585066,1754448690409,-400.0,0.00036164,14]
[377585067,1754448690418,-400.0,0.00036164,14]
[377585068,1754448690427,-400.0,0.00036164,14]
[377585069,1754448690436,-400.0,0.00036164,14]
[377585070,1754448690445,-400.96,0.00036164,14]
[377585071,1754448690455,-888.4,0.00036164,14]
[377585072,1754448690464,-400.0,0.00036164,14]
[377585073,1754448690473,-1391.51,0.00036164,14]
[377585074,1754448690483,-885.84,0.00036164,14]
[377585075,1754448690492,-400.0,0.00036164,14]
[377585076,1754448690501,-400.0,0.00036164,14]
[377585077,1754448690510,-2022.35,0.00036164,14]
[377585078,1754448690521,-400.0,0.00036164,14]
[377585079,1754448690531,-1485.63,0.00036164,14]
[377585080,1754448690540,-577.94,0.00036164,14]
[377585081,1754448690550,-400.0,0.00036164,14]
[377585082,1754448690559,-2205.6,0.00036164,14]
[377585083,1754448690568,-400.0,0.00036164,14]
[377585084,1754448690577,-594.52,0.00036164,14]
[377585085,1754448690586,-400.0,0.00036164,14]
[377585086,1754448690595,-516.69,0.00036164,14]
[377585087,1754448690605,-400.0,0.00036164,14]
[377585088,1754448690614,-400.99,0.00036164,14]
[377585089,1754448690623,-171.14166453,0.00036164,14]
[377585090,1754448690632,-400.0,0.00036164,14]
[377585091,1754448690642,-400.0,0.00036164,14]
[377585092,1754448690651,-963.31,0.00036164,14]
[377585093,1754448690661,-400.0,0.00036164,14]
[377585094,1754448690670,-400.0,0.00036164,14]
[377585095,1754448690679,-798.43,0.00036164,14]
[377585096,1754448690689,-400.0,0.00036164,14]
[377585097,1754448690699,-400.0,0.00036164,14]
[377585098,1754448690708,-406.74224227,0.00036164,14]
[377585099,1754448690718,-400.0,0.00036164,14]
[377585100,1754448690726,-401.26271476,0.00036164,14]
[377585101,1754448690736,-825.61,0.00036164,14]
[377585102,1754448690745,-400.0,0.00036164,14]
[377585103,1754448690755,-400.0,0.00036164,14]
[377585104,1754448690764,-400.0,0.00036164,14]
[377585105,1754448690774,-425.14,0.00036164,14]
[377585106,1754448690783,-1955.89,0.00036164,14]
[377585107,1754448690793,-400.0,0.00036164,14]
[377585108,1754448690802,-400.0,0.00036164,14]
[377585109,1754448690811,-872.75,0.00036164,14]
[377585110,1754448690821,-672.46,0.00036164,14]
[377585111,1754448690831,-666.07,0.00036164,14]
[377585112,1754448690841,-400.0,0.00036164,7]
[377585113,1754448690851,-151.0,0.00036164,7]
[377585114,1754448690862,-400.0,0.00036164,14]
[377585115,1754448690872,-151.0,0.00036164,7]
[377585116,1754448690881,-2048.4,0.00036164,14]
[377585117,1754448690890,-490.52020771,0.00036164,14]
[377585118,1754448690900,-1186.37,0.00036164,14]
[377585119,1754448690909,-151.0,0.00036164,7]
[377585120,1754448690918,-1867.25,0.00036164,14]
[377585121,1754448690927,-400.0,0.00036164,14]
[377585122,1754448690937,-184.699812,0.00036164,7]
[377585123,1754448690947,-400.0,0.00036164,14]
[377585124,1754448690956,-400.62217759,0.00036164,14]
[377585125,1754448690965,-400.0,0.00036164,14]
[377585126,1754448690974,-400.0,0.00036164,14]
[377585127,1754448690983,-407.22428979,0.00036164,14]
[377585128,1754448690992,-400.0,0.00036164,14]
[377585129,1754448691001,-1486.37,0.00036164,14]
[377585130,1754448691011,-1282.75,0.00036164,14]
[377585131,1754448691021,-400.0,0.00036164,14]
[377585132,1754448691029,-620.41,0.00036164,14]
[377585133,1754448691039,-426.54,0.00036164,14]
[377585134,1754448691048,-1685.19,0.00036164,14]
[377585135,1754448691056,-546.47,0.00036164,14]
[377585136,1754448691065,-400.0,0.00036164,14]
[377585137,1754448691075,-151.0,0.00036164,7]
[377585138,1754448691085,-400.0,0.00036164,14]
[377585139,1754448691094,-400.0,0.00036164,14]
[377585140,1754448691103,-1042.07,0.00036164,14]
[377585141,1754448691113,-607.47,0.00036164,14]
[377585142,1754448691122,-400.0,0.00036164,14]
[377585143,1754448691132,-1387.34,0.00036164,14]
[377585144,1754448691141,-1608.62,0.00036164,14]
[377585145,1754448691151,-640.46,0.00036164,14]
[377585146,1754448691160,-1266.36,0.00036164,14]
[377585147,1754448691170,-400.0,0.00036164,14]
[377585148,1754448691180,-1198.83,0.00036164,14]
[377585149,1754448691190,-400.0,0.00036164,2]
[377585150,1754448691200,-850.06,0.00036164,14]
[377585151,1754448691209,-1040.96,0.00036164,14]
[377585152,1754448691218,-2213.68,0.00036164,14]
[377585153,1754448691227,-400.0,0.00036164,14]
[377585154,1754448691237,-400.0,0.00036164,14]
[377585155,1754448691246,-151.0,0.00036164,7]
[377585156,1754448691256,-400.0,0.00036164,14]
[377585157,1754448691265,-627.73,0.00036164,14]
[377585158,1754448691275,-151.0,0.00036164,7]
[377585159,1754448691284,-400.0,0.00036164,14]
[377585160,1754448691294,-471.56,0.00036164,14]
[377585161,1754448691304,-400.0,0.00036164,14]
[377585162,1754448691313,-511.19,0.00036164,14]
[377585163,1754448691323,-400.0,0.00036164,14]
[377585164,1754448691332,-400.0,0.00036164,14]
[377585165,1754448691342,-400.0,0.00036164,14]
[377585166,1754448691352,-400.0,0.00036164,14]
[377585167,1754448691361,-440.85,0.00036164,14]
[377585168,1754448691371,-860.58,0.00036164,14]
[377585169,1754448691380,-366.6569017,0.00036164,14]
[377585170,1754448691390,-400.0,0.00036164,14]
[377585171,1754448691399,-1113.65,0.00036164,14]
[377585172,1754448691409,-400.0,0.00036164,14]
[377585173,1754448691418,-400.0,0.00036164,14]
[377585174,1754448691427,-400.0,0.00036164,14]
[377585175,1754448691437,-400.0,0.00036164,14]
[377585176,1754448691446,-400.0,0.00036164,14]
[377585177,1754448691455,-985.67,0.00036164,14]
[377585178,1754448691464,-400.0,0.00036164,14]
[377585179,1754448691474,-400.0,0.00036164,14]
[377585180,1754448691484,-523.26,0.00036164,14]
[377585181,1754448691493,-400.0,0.00036164,14]
[377585182,1754448691503,-400.0,0.00036164,14]
[377585183,1754448691513,-531.05,0.00036164,14]
[377585184,1754448691523,-1788.17,0.00036164,14]
[377585185,1754448691533,-400.99701555,0.00036164,14]
[377585186,1754448691543,-400.0,0.00036164,14]
[377585187,1754448691552,-1913.41,0.00036164,14]
[377585188,1754448691562,-1243.8,0.00036164,14]
[377585189,1754448691572,-400.0,0.00036164,14]
[377585190,1754448691582,-400.0,0.00036164,14]
[377585191,1754448691592,-2195.18,0.00036164,14]
[377585192,1754448691602,-400.0,0.00036164,14]
[377585193,1754448691611,-973.74,0.00036164,14]
[377585194,1754448691621,-400.0,0.00036164,14]
[377585195,1754448691630,-400.0,0.00036164,14]
[377585196,1754448691640,-400.0,0.00036164,14]
[377585197,1754448691649,-172.46432247,0.00036164,14]
[377585198,1754448691658,-400.0,0.00036164,14]
[377585199,1754448691668,-400.0,0.00036164,14]
[377585200,1754448691678,-511.74,0.00036164,14]
[377585201,1754448691687,-1237.93,0.00036164,14]
[377585202,1754448691698,-1927.1,0.00036164,14]
[377585203,1754448691708,-880.55,0.00036164,14]
[377585204,1754448691717,-1421.29,0.00036164,14]
[377585205,1754448691727,-1559.95,0.00036164,14]
[377585206,1754448691736,-400.0,0.00036164,14]
[377585207,1754448691746,-400.0,0.00036164,14]
[377585208,1754448691756,-400.0,0.00036164,14]
[377585209,1754448691766,-764.11,0.00036164,14]
[377585210,1754448691776,-832.23,0.00036164,14]
[377585211,1754448691786,-400.0,0.00036164,14]
[377585212,1754448691795,-1200.18,0.00036164,14]
[377585213,1754448691806,-400.0,0.00036164,14]
[377585214,1754448691816,-982.62,0.00036164,14]
[377585215,1754448691826,-851.23,0.00036164,14]
[377585216,1754448691836,-483.16,0.00036164,14]
[377585217,1754448691846,-400.0,0.00036164,14]
[377585218,1754448691857,-1009.21,0.00036164,14]
[377585219,1754448691870,-400.0,0.00036164,14]
[377585220,1754448691879,-400.0,0.00036164,14]
[377585221,1754448691890,-400.0,0.00036164,14]
[377585222,1754448691900,-1056.91,0.00036164,14]
[377585223,1754448691910,-454.78,0.00036164,14]
[377585224,1754448691921,-1461.35,0.00036164,14]
[377585225,1754448691931,-400.0,0.00036164,14]
[377585226,1754448691942,-402.21972859,0.00036164,14]
[377585227,1754448691953,-519.19,0.00036164,14]
[377585228,1754448691963,-400.0,0.00036164,14]
[377585229,1754448691973,-1050.13,0.00036164,14]
[377585230,1754448691983,-400.0,0.00036164,14]
[377585231,1754448691994,-400.0,0.00036164,14]
[377585232,1754448692004,-400.0,0.00036164,14]
[377585233,1754448692014,-1907.53,0.00036164,14]
[377585234,1754448692025,-400.0,0.00036164,14]
[377585235,1754448692036,-400.0,0.00036164,14]
[377585236,1754448692046,-1615.6,0.00036164,14]
[377585237,1754448692056,-400.0,0.00036164,14]
[377585238,1754448692066,-1550.81,0.00036164,14]
[377585239,1754448692076,-400.0,0.00036164,14]
[377585240,1754448692085,-400.0,0.00036164,14]
[377585241,1754448692096,-400.0,0.00036164,14]
[377585242,1754448692106,-1830.1,0.00036164,14]
[377585243,1754448692116,-400.0,0.00036164,14]
[377585244,1754448692126,-400.0,0.00036164,14]
[377585245,1754448692136,-400.0,0.00036164,14]
[377585246,1754448692145,-802.15,0.00036164,14]
[377585247,1754448692155,-1088.04,0.00036164,14]
[377585248,1754448692165,-3675.96,0.00036164,14]
[377585249,1754448692174,-417.37,0.00036164,14]
[377585250,1754448692183,-400.0,0.00036164,14]
[377585251,1754448692193,-1532.37,0.00036164,14]
[377585252,1754448692203,-402.26530914,0.00036164,14]
[377585253,1754448692213,-498.81,0.00036164,14]
[377585254,1754448692223,-675.67,0.00036164,14]
[377585255,1754448692234,-400.0,0.00036164,14]
[377585256,1754448692244,-1930.27,0.00036164,14]
[377585257,1754448692255,-159.927022,0.00036164,7]
[377585258,1754448692265,-477.88,0.00036164,14]
[377585259,1754448692278,-400.0,0.00036164,14]
[377585260,1754448692288,-400.0,0.00036164,14]
[377585261,1754448692300,-400.0,0.00036164,14]
[377585262,1754448692310,-1895.26,0.00036164,14]
[377585263,1754448692320,-400.0,0.00036164,14]
[377585264,1754448692330,-2398.75,0.00036164,14]
[377585265,1754448692340,-400.0,0.00036164,14]
[377585266,1754448692351,-693.8,0.00036164,14]
[377585267,1754448692360,-401.07689694,0.00036164,14]
[377585268,1754448692371,-1056.68,0.00036164,14]
[377585269,1754448692380,-400.90146679,0.00036164,14]
[377585270,1754448692390,-400.0,0.00036164,14]
[377585271,1754448692400,-400.0,0.00036164,14]
[377585272,1754448692410,-694.7,0.00036164,14]
[377585273,1754448692420,-1000.88,0.00036164,14]
[377585274,1754448692429,-400.0,0.00036164,14]
[377585275,1754448692439,-400.0,0.00036164,14]
[377585276,1754448692449,-1000.0,0.00036164,14]
[377585277,1754448692459,-400.0,0.00036164,14]
[377585278,1754448692469,-276.93997762,0.00036164,14]
[377585279,1754448692479,-400.0,0.00036164,14]
[377585280,1754448692489,-400.0,0.00036164,14]
[377585281,1754448692499,-1087.98,0.00036164,14]
[377585282,1754448692509,-400.0,0.00036164,14]
[377585283,1754448692519,-411.23612413,0.00036164,14]
[377585284,1754448692532,-1317.27,0.00036164,14]
[377585285,1754448692542,-432.07,0.00036164,14]
[377585286,1754448692552,-660.48,0.00036164,14]
[377585287,1754448692562,-1841.73,0.00036164,14]
[377585288,1754448692571,-400.0,0.00036164,14]
[377585289,1754448692581,-400.0,0.00036164,14]
[377585290,1754448692591,-400.0,0.00036164,14]
[377585291,1754448692601,-1706.66,0.00036164,14]
[377585292,1754448692612,-400.0,0.00036164,14]
[377585293,1754448692623,-2115.6,0.00036164,14]
[377585294,1754448692632,-195.838328,0.00036164,7]
[377585295,1754448692642,-2048.1,0.00036164,14]
[377585296,1754448692652,-195.838328,0.00036164,7]
[377585297,1754448692662,-151.0,0.00036164,7]
[377585298,1754448692671,-151.0,0.00036164,7]
[377585299,1754448692681,-400.0,0.00036164,14]
[377585300,1754448692691,-890.38,0.00036164,14]
[377585301,1754448692700,-400.0,0.00036164,14]
[377585302,1754448692709,-763.76,0.00036164,14]
[377585303,1754448692719,-400.0,0.00036164,14]
[377585304,1754448692728,-195.838328,0.00036164,7]
[377585305,1754448692737,-400.0,0.00036164,14]
[377585306,1754448692746,-195.838328,0.00036164,7]
[377585307,1754448692756,-400.0,0.00036164,14]
[377585308,1754448692765,-155.83211,0.00036164,7]
[377585309,1754448692775,-400.0,0.00036164,14]
[377585310,1754448692785,-400.0,0.00036164,14]
[377585311,1754448692794,-554.46,0.00036164,14]
[377585312,1754448692803,-1978.5,0.00036164,14]
[377585313,1754448692813,-212.51,0.00036164,14]